[Event "Early-Titled-Tuesday-Blitz-September-26-2023"]
[Site "Chess.com"]
[Date "2023.09.26"]
[Round "7"]
[White "Alina_Gumerovna"]
[Black "RobertoJBM"]
[Result "1-0"]
[WhiteElo "2174"]
[BlackElo "2789"]
[TimeControl "180+1"]
[EndTime "9:20:37 PDT"]
[Termination "Alina_Gumerovna won on time"]

1. e4 {[%clk 0:03:00.1]} 1... c6 {[%clk 0:02:53]} 2. d4 {[%clk 0:02:59.8]} 2...
d5 {[%clk 0:02:53.9]} 3. Nc3 {[%clk 0:03:00]} 3... dxe4 {[%clk 0:02:53.3]} 4.
Nxe4 {[%clk 0:03:00.9]} 4... Nd7 {[%clk 0:02:52.1]} 5. Nf3 {[%clk 0:03:00.1]}
5... Ngf6 {[%clk 0:02:52.1]} 6. Ng3 {[%clk 0:03:00.1]} 6... e6 {[%clk 0:02:52]}
7. Bd3 {[%clk 0:03:00.4]} 7... c5 {[%clk 0:02:51.4]} 8. O-O {[%clk 0:02:59]}
8... cxd4 {[%clk 0:02:51.4]} 9. Nxd4 {[%clk 0:02:59.2]} 9... Bc5 {[%clk
0:02:51.6]} 10. c3 {[%clk 0:02:57.3]} 10... O-O {[%clk 0:02:51]} 11. Bg5 {[%clk
0:02:49.5]} 11... Re8 {[%clk 0:02:48.4]} 12. Nb3 {[%clk 0:02:43.1]} 12... Be7
{[%clk 0:02:47.3]} 13. Qf3 {[%clk 0:02:41.8]} 13... Ne5 {[%clk 0:02:45.2]} 14.
Qe2 {[%clk 0:02:34.3]} 14... Qxd3 {[%clk 0:02:22.7]} 15. Qxe5 {[%clk 0:02:28.1]}
15... Ng4 {[%clk 0:02:14.4]} 16. Qe4 {[%clk 0:01:55.6]} 16... Qxe4 {[%clk
0:02:10.2]} 17. Nxe4 {[%clk 0:01:56.5]} 17... f6 {[%clk 0:02:07.7]} 18. h3
{[%clk 0:01:50.3]} 18... Ne5 {[%clk 0:02:06.2]} 19. Bh4 {[%clk 0:01:43.8]} 19...
Nf7 {[%clk 0:01:58.3]} 20. f4 {[%clk 0:01:36.7]} 20... e5 {[%clk 0:01:55.2]} 21.
Bg3 {[%clk 0:01:32.6]} 21... f5 {[%clk 0:01:50.3]} 22. Nec5 {[%clk 0:01:27.3]}
22... b6 {[%clk 0:01:47.6]} 23. Nd3 {[%clk 0:01:26.5]} 23... e4 {[%clk
0:01:47.8]} 24. Ne5 {[%clk 0:01:26]} 24... Nxe5 {[%clk 0:01:47]} 25. fxe5 {[%clk
0:01:26.9]} 25... g6 {[%clk 0:01:44.8]} 26. Rad1 {[%clk 0:01:23.5]} 26... Ba6
{[%clk 0:01:43.9]} 27. Rfe1 {[%clk 0:01:21.4]} 27... Rad8 {[%clk 0:01:43.4]} 28.
Nd4 {[%clk 0:01:19]} 28... Bb7 {[%clk 0:01:27.3]} 29. Nb5 {[%clk 0:01:11.8]}
29... a6 {[%clk 0:01:08.2]} 30. Nc7 {[%clk 0:00:55.5]} 30... Rxd1 {[%clk
0:01:03.2]} 31. Rxd1 {[%clk 0:00:54.7]} 31... Rd8 {[%clk 0:01:04.1]} 32. Rxd8+
{[%clk 0:00:51.4]} 32... Bxd8 {[%clk 0:01:05]} 33. Ne6 {[%clk 0:00:41.1]} 33...
Be7 {[%clk 0:01:02.5]} 34. Nd4 {[%clk 0:00:41]} 34... Bd5 {[%clk 0:00:58.3]} 35.
b3 {[%clk 0:00:39.9]} 35... b5 {[%clk 0:00:58.4]} 36. Kf2 {[%clk 0:00:38.8]}
36... Kf7 {[%clk 0:00:58.2]} 37. h4 {[%clk 0:00:29.1]} 37... h6 {[%clk
0:00:53.5]} 38. Ke3 {[%clk 0:00:26.9]} 38... Ba3 {[%clk 0:00:43.1]} 39. Be1
{[%clk 0:00:25.4]} 39... Bc5 {[%clk 0:00:36.7]} 40. g3 {[%clk 0:00:15.5]} 40...
g5 {[%clk 0:00:35.5]} 41. hxg5 {[%clk 0:00:14.9]} 41... hxg5 {[%clk 0:00:36.4]}
42. Ke2 {[%clk 0:00:13.5]} 42... f4 {[%clk 0:00:32.8]} 43. gxf4 {[%clk
0:00:11.9]} 43... gxf4 {[%clk 0:00:33.7]} 44. Bd2 {[%clk 0:00:12.1]} 44... e3
{[%clk 0:00:30.1]} 45. Be1 {[%clk 0:00:12.4]} 45... Kg6 {[%clk 0:00:27.4]} 46.
e6 {[%clk 0:00:09.7]} 46... Be7 {[%clk 0:00:22.8]} 47. Nf3 {[%clk 0:00:06]}
47... Kf6 {[%clk 0:00:19.8]} 48. Bh4+ {[%clk 0:00:05.1]} 48... Kxe6 {[%clk
0:00:20.1]} 49. Nd4+ {[%clk 0:00:03.8]} 49... Kd7 {[%clk 0:00:18.8]} 50. Bxe7
{[%clk 0:00:03.8]} 50... Kxe7 {[%clk 0:00:19.7]} 51. a4 {[%clk 0:00:01.7]} 51...
bxa4 {[%clk 0:00:18.9]} 52. bxa4 {[%clk 0:00:02.6]} 52... Kd6 {[%clk 0:00:18.2]}
53. Nf5+ {[%clk 0:00:02.7]} 53... Kc5 {[%clk 0:00:17.3]} 54. Nxe3 {[%clk
0:00:03.1]} 54... fxe3 {[%clk 0:00:15.7]} 55. Kxe3 {[%clk 0:00:04]} 55... Kc4
{[%clk 0:00:14.7]} 56. Kd2 {[%clk 0:00:04.9]} 56... Kb3 {[%clk 0:00:13.9]} 57.
Kc1 {[%clk 0:00:05.8]} 57... Ka2 {[%clk 0:00:09.8]} 58. Kc2 {[%clk 0:00:06.2]}
58... Bc4 {[%clk 0:00:10.2]} 59. Kc1 {[%clk 0:00:05.6]} 59... Bb3 {[%clk
0:00:09]} 60. a5 {[%clk 0:00:04.3]} 60... Bc4 {[%clk 0:00:05.5]} 61. Kc2 {[%clk
0:00:04.5]} 61... Bb5 {[%clk 0:00:03.5]} 62. Kc1 {[%clk 0:00:03.6]} 62... Bd3
{[%clk 0:00:03.5]} 63. Kd2 {[%clk 0:00:03.3]} 63... Bf5 {[%clk 0:00:03.4]} 64.
Kc1 {[%clk 0:00:03.6]} 64... Kb3 {[%clk 0:00:01.8]} 65. c4 {[%clk 0:00:04]} 1-0

[Event "Early-Titled-Tuesday-Blitz-September-26-2023"]
[Site "Chess.com"]
[Date "2023.09.26"]
[Round "7"]
[White "Irina_Mikhaylova"]
[Black "rikchessmx"]
[Result "1/2-1/2"]
[WhiteElo "2285"]
[BlackElo "2349"]
[TimeControl "180+1"]
[EndTime "9:20:37 PDT"]
[Termination "Game drawn - insufficient material"]

1. d4 {[%clk 0:02:59.9]} 1... Nf6 {[%clk 0:02:58.5]} 2. c4 {[%clk 0:03:00.1]}
2... e6 {[%clk 0:02:55]} 3. Nf3 {[%clk 0:02:58.8]} 3... c5 {[%clk 0:02:54.7]} 4.
d5 {[%clk 0:02:58.8]} 4... b5 {[%clk 0:02:55.3]} 5. dxe6 {[%clk 0:02:58.6]} 5...
fxe6 {[%clk 0:02:54.8]} 6. cxb5 {[%clk 0:02:59.5]} 6... Bb7 {[%clk 0:02:54.1]}
7. g3 {[%clk 0:02:59.9]} 7... Be7 {[%clk 0:02:53.6]} 8. Bg2 {[%clk 0:02:59.9]}
8... O-O {[%clk 0:02:54.5]} 9. O-O {[%clk 0:03:00.3]} 9... a6 {[%clk 0:02:54.6]}
10. bxa6 {[%clk 0:02:52]} 10... Nxa6 {[%clk 0:02:55.5]} 11. Nbd2 {[%clk
0:02:49.7]} 11... d5 {[%clk 0:02:55]} 12. e4 {[%clk 0:02:49.9]} 12... Nb4 {[%clk
0:02:49.1]} 13. a3 {[%clk 0:02:26.8]} 13... Nd3 {[%clk 0:02:46.5]} 14. Qe2
{[%clk 0:02:26.9]} 14... Ba6 {[%clk 0:02:45.6]} 15. exd5 {[%clk 0:02:22.6]}
15... exd5 {[%clk 0:02:39.8]} 16. Qe6+ {[%clk 0:02:17.7]} 16... Kh8 {[%clk
0:02:38.7]} 17. Re1 {[%clk 0:02:14.6]} 17... Nxe1 {[%clk 0:02:37.6]} 18. Qxe1
{[%clk 0:02:14.3]} 18... Bd6 {[%clk 0:02:33.9]} 19. Nf1 {[%clk 0:02:11.2]} 19...
Ne4 {[%clk 0:02:30.9]} 20. Be3 {[%clk 0:02:03.6]} 20... Qf6 {[%clk 0:02:22.1]}
21. Qc1 {[%clk 0:02:00.6]} 21... Bxf1 {[%clk 0:02:05.8]} 22. Kxf1 {[%clk
0:01:58.5]} 22... d4 {[%clk 0:02:05.7]} 23. Bg5 {[%clk 0:01:53.9]} 23... Nxg5
{[%clk 0:02:04.7]} 24. Qxg5 {[%clk 0:01:54.8]} 24... Qe6 {[%clk 0:01:57.2]} 25.
Qh5 {[%clk 0:01:28.4]} 25... g6 {[%clk 0:01:39.5]} 26. Qxh7+ {[%clk 0:01:19.9]}
26... Kxh7 {[%clk 0:01:31.3]} 27. Ng5+ {[%clk 0:01:20.5]} 27... Kg8 {[%clk
0:01:30.5]} 28. Nxe6 {[%clk 0:01:20.7]} 28... Rab8 {[%clk 0:01:24.7]} 29. Nxf8
{[%clk 0:01:19.6]} 29... Kxf8 {[%clk 0:01:24.3]} 30. Ra2 {[%clk 0:01:08.9]}
30... c4 {[%clk 0:01:21.8]} 31. Bd5 {[%clk 0:01:06.8]} 31... c3 {[%clk 0:01:10]}
32. bxc3 {[%clk 0:01:06.5]} 32... dxc3 {[%clk 0:01:09.8]} 33. Rc2 {[%clk
0:01:00.4]} 33... Be5 {[%clk 0:01:08.4]} 34. Be4 {[%clk 0:00:47.9]} 34... g5
{[%clk 0:01:07.5]} 35. Ke2 {[%clk 0:00:47.5]} 35... Rb3 {[%clk 0:01:04.3]} 36.
a4 {[%clk 0:00:46.9]} 36... Ra3 {[%clk 0:01:03.9]} 37. Bc6 {[%clk 0:00:46.6]}
37... Ke7 {[%clk 0:01:03.7]} 38. Ke3 {[%clk 0:00:42.8]} 38... Kd6 {[%clk
0:01:03.6]} 39. Bb5 {[%clk 0:00:42.4]} 39... Ra1 {[%clk 0:01:00.6]} 40. f4
{[%clk 0:00:41.8]} 40... gxf4+ {[%clk 0:00:58.6]} 41. gxf4 {[%clk 0:00:42.1]}
41... Bf6 {[%clk 0:00:58.7]} 42. Ke4 {[%clk 0:00:39.3]} 42... Re1+ {[%clk
0:00:57.3]} 43. Kf5 {[%clk 0:00:39.2]} 43... Bd4 {[%clk 0:00:56.5]} 44. h4
{[%clk 0:00:35.9]} 44... Rh1 {[%clk 0:00:49.8]} 45. Kg4 {[%clk 0:00:33.1]} 45...
Kc5 {[%clk 0:00:49.2]} 46. h5 {[%clk 0:00:32]} 46... Kb4 {[%clk 0:00:48.8]} 47.
Kg5 {[%clk 0:00:29.2]} 47... Kb3 {[%clk 0:00:47.8]} 48. Bd3 {[%clk 0:00:29.5]}
48... Rh3 {[%clk 0:00:43.8]} 49. Bg6 {[%clk 0:00:28.8]} 49... Kxa4 {[%clk
0:00:42.1]} 50. h6 {[%clk 0:00:27.4]} 50... Kb3 {[%clk 0:00:41.1]} 51. Bf5
{[%clk 0:00:27.4]} 51... Rg3+ {[%clk 0:00:37.4]} 52. Kh5 {[%clk 0:00:27.4]}
52... Rg1 {[%clk 0:00:36.7]} 53. h7 {[%clk 0:00:27.3]} 53... Rh1+ {[%clk
0:00:36.6]} 54. Kg6 {[%clk 0:00:27.7]} 54... Rh4 {[%clk 0:00:34.2]} 55. Re2
{[%clk 0:00:17.9]} 55... Rxf4 {[%clk 0:00:32.5]} 56. Bc2+ {[%clk 0:00:18.8]}
56... Kb4 {[%clk 0:00:28.4]} 57. Kg5 {[%clk 0:00:18.9]} 57... Rf1 {[%clk
0:00:23.8]} 58. Re4 {[%clk 0:00:18.2]} 58... Rg1+ {[%clk 0:00:19.7]} 59. Kf5
{[%clk 0:00:16.8]} 59... Rh1 {[%clk 0:00:17]} 60. Kg6 {[%clk 0:00:17.2]} 60...
Rg1+ {[%clk 0:00:13.5]} 61. Kf5 {[%clk 0:00:17.3]} 61... Rh1 {[%clk 0:00:12.5]}
62. Kg6 {[%clk 0:00:17.7]} 62... Kc5 {[%clk 0:00:08.6]} 63. Rg4 {[%clk
0:00:14.7]} 63... Rh2 {[%clk 0:00:06.1]} 64. Bf5 {[%clk 0:00:14.2]} 64... c2
{[%clk 0:00:04.6]} 65. Bxc2 {[%clk 0:00:14.2]} 65... Rxc2 {[%clk 0:00:05]} 66.
Rg5+ {[%clk 0:00:14.4]} 66... Kd6 {[%clk 0:00:03.9]} 67. Rh5 {[%clk 0:00:14.3]}
67... Rc8 {[%clk 0:00:02.4]} 68. Kf7 {[%clk 0:00:13.3]} 68... Be5 {[%clk
0:00:01.5]} 69. Rxe5 {[%clk 0:00:11.6]} 69... Kxe5 {[%clk 0:00:01.8]} 70. Kg7
{[%clk 0:00:12.2]} 70... Rc7+ {[%clk 0:00:02.4]} 71. Kg8 {[%clk 0:00:12.5]}
71... Rc8+ {[%clk 0:00:01.9]} 72. Kg7 {[%clk 0:00:12.9]} 72... Rc7+ {[%clk
0:00:02.3]} 73. Kg8 {[%clk 0:00:13.5]} 73... Rxh7 {[%clk 0:00:01.9]} 74. Kxh7
{[%clk 0:00:13.6]} 1/2-1/2

[Event "Early-Titled-Tuesday-Blitz-September-26-2023"]
[Site "Chess.com"]
[Date "2023.09.26"]
[Round "7"]
[White "Lion-Al-Messi"]
[Black "Manukyan_Artak"]
[Result "1/2-1/2"]
[WhiteElo "2641"]
[BlackElo "2417"]
[TimeControl "180+1"]
[EndTime "9:20:39 PDT"]
[Termination "Game drawn by agreement"]

1. e4 {[%clk 0:03:00.9]} 1... c6 {[%clk 0:03:00.3]} 2. Nf3 {[%clk 0:03:00.9]}
2... d5 {[%clk 0:03:00]} 3. Nc3 {[%clk 0:03:01.8]} 3... dxe4 {[%clk 0:02:58.8]}
4. Nxe4 {[%clk 0:03:02.7]} 4... Nf6 {[%clk 0:02:59.1]} 5. Nxf6+ {[%clk
0:03:03.2]} 5... exf6 {[%clk 0:03:00]} 6. Bc4 {[%clk 0:03:03.5]} 6... Bd6 {[%clk
0:02:58.6]} 7. Qe2+ {[%clk 0:03:02.6]} 7... Qe7 {[%clk 0:02:58.7]} 8. Qxe7+
{[%clk 0:03:02.1]} 8... Kxe7 {[%clk 0:02:59.6]} 9. O-O {[%clk 0:03:02.4]} 9...
Be6 {[%clk 0:02:59.8]} 10. Re1 {[%clk 0:03:02.7]} 10... Kd7 {[%clk 0:03:00.1]}
11. Be2 {[%clk 0:03:02.9]} 11... Re8 {[%clk 0:02:57.9]} 12. d4 {[%clk
0:03:02.7]} 12... Bd5 {[%clk 0:02:56.2]} 13. Be3 {[%clk 0:03:02.3]} 13... b5
{[%clk 0:02:55.2]} 14. a4 {[%clk 0:03:01]} 14... b4 {[%clk 0:02:55.3]} 15. c4
{[%clk 0:03:00.1]} 15... bxc3 {[%clk 0:02:55.2]} 16. bxc3 {[%clk 0:03:00.3]}
16... a5 {[%clk 0:02:52.4]} 17. c4 {[%clk 0:02:51.7]} 17... Bxf3 {[%clk
0:02:51.5]} 18. Bxf3 {[%clk 0:02:52.6]} 18... Bb4 {[%clk 0:02:48.6]} 19. Red1
{[%clk 0:02:51.3]} 19... g6 {[%clk 0:02:48.1]} 20. c5 {[%clk 0:02:34.2]} 20...
Na6 {[%clk 0:02:34.1]} 21. d5 {[%clk 0:02:33.7]} 21... Nxc5 {[%clk 0:02:29.1]}
22. dxc6+ {[%clk 0:02:32.5]} 22... Kc7 {[%clk 0:02:29.7]} 23. Bf4+ {[%clk
0:02:30.9]} 23... Kb6 {[%clk 0:02:25.2]} 24. c7 {[%clk 0:02:29]} 24... Rac8
{[%clk 0:02:22.4]} 25. Rd6+ {[%clk 0:02:29.1]} 25... Ka7 {[%clk 0:02:18.5]} 26.
Rxf6 {[%clk 0:02:21.4]} 26... Bc3 {[%clk 0:02:06.5]} 27. Rb1 {[%clk 0:02:21.4]}
27... Bxf6 {[%clk 0:02:00.7]} 28. g4 {[%clk 0:02:06.9]} 28... Be5 {[%clk
0:01:52]} 29. Be3 {[%clk 0:02:04.6]} 29... Rxc7 {[%clk 0:01:47.1]} 30. Rb5
{[%clk 0:01:57]} 30... Bd6 {[%clk 0:01:46]} 31. Rxa5+ {[%clk 0:01:57.3]} 31...
Kb6 {[%clk 0:01:38.1]} 32. Rb5+ {[%clk 0:01:57.6]} 32... Ka6 {[%clk 0:01:37.1]}
33. Be2 {[%clk 0:01:57.8]} 33... Rxe3 {[%clk 0:01:13.9]} 34. fxe3 {[%clk
0:01:58.7]} 34... Ka7 {[%clk 0:01:12.9]} 35. Ra5+ {[%clk 0:01:58.9]} 35... Kb8
{[%clk 0:01:11.3]} 36. Bf3 {[%clk 0:01:59.2]} 36... Kc8 {[%clk 0:01:07]} 37.
Ra8+ {[%clk 0:01:56.1]} 37... Kd7 {[%clk 0:01:07]} 38. Rh8 {[%clk 0:01:57]}
38... Nxa4 {[%clk 0:01:04.6]} 39. Rxh7 {[%clk 0:01:56.5]} 39... Ke6 {[%clk
0:01:04.7]} 40. h4 {[%clk 0:01:53.9]} 40... Rc2 {[%clk 0:00:59.9]} 41. h5 {[%clk
0:01:52.6]} 41... gxh5 {[%clk 0:00:58.6]} 42. gxh5 {[%clk 0:01:53.5]} 42... Bc5
{[%clk 0:00:58.9]} 43. Rh8 {[%clk 0:01:42.3]} 43... Bxe3+ {[%clk 0:00:58.7]} 44.
Kh1 {[%clk 0:01:42.7]} 44... Bf4 {[%clk 0:00:55.9]} 45. Re8+ {[%clk 0:01:41.3]}
45... Kf6 {[%clk 0:00:55.4]} 46. Re4 {[%clk 0:01:39.4]} 46... Kg5 {[%clk
0:00:35.9]} 47. Rxa4 {[%clk 0:01:37.9]} 47... Rf2 {[%clk 0:00:33.7]} 48. Ra3
{[%clk 0:01:20.6]} 48... Kh4 {[%clk 0:00:27.6]} 49. Kg1 {[%clk 0:01:18.3]} 49...
Rb2 {[%clk 0:00:20.6]} 50. Kf1 {[%clk 0:01:09.3]} 50... f5 {[%clk 0:00:16.7]}
51. Be2 {[%clk 0:01:02.4]} 51... Kg5 {[%clk 0:00:15.3]} 52. Ra6 {[%clk 0:01:00]}
52... Be3 {[%clk 0:00:10.5]} 53. h6 {[%clk 0:00:54.5]} 53... Rb7 {[%clk
0:00:09.9]} 54. Ra3 {[%clk 0:00:44.3]} 54... Kf4 {[%clk 0:00:09.4]} 55. Ra4+
{[%clk 0:00:35.4]} 55... Kg3 {[%clk 0:00:09.4]} 56. Bd3 {[%clk 0:00:29.6]} 56...
Bxh6 {[%clk 0:00:05.7]} 57. Ra3 {[%clk 0:00:28.9]} 57... Kf4 {[%clk 0:00:04.6]}
58. Ra4+ {[%clk 0:00:28.9]} 58... Ke3 {[%clk 0:00:04.7]} 59. Bxf5 {[%clk
0:00:25.4]} 59... Rf7 {[%clk 0:00:04.4]} 60. Ra5 {[%clk 0:00:25.9]} 60... Kf4
{[%clk 0:00:02.2]} 61. Be6 {[%clk 0:00:26]} 61... Rf6 {[%clk 0:00:01.3]} 62. Bd7
{[%clk 0:00:24.3]} 62... Ke3+ {[%clk 0:00:02.2]} 63. Ke1 {[%clk 0:00:22.9]}
63... Bf4 {[%clk 0:00:03.1]} 64. Ra3+ {[%clk 0:00:20.7]} 64... Kd4 {[%clk
0:00:04]} 65. Ra4+ {[%clk 0:00:21.2]} 65... Ke5 {[%clk 0:00:04.9]} 66. Bc8
{[%clk 0:00:19.4]} 66... Kd6 {[%clk 0:00:05.1]} 67. Bg4 {[%clk 0:00:18.3]} 67...
Ke7 {[%clk 0:00:06]} 68. Ke2 {[%clk 0:00:18.4]} 68... Bd6 {[%clk 0:00:06.8]} 69.
Ke3 {[%clk 0:00:18.2]} 69... Rf4 {[%clk 0:00:06.6]} 70. Ra7+ {[%clk 0:00:18.6]}
70... Kf6 {[%clk 0:00:06.8]} 71. Ra6 {[%clk 0:00:17.2]} 71... Rxg4 {[%clk
0:00:05.8]} 72. Rxd6+ {[%clk 0:00:17.4]} 72... Kg5 {[%clk 0:00:06.7]} 73. Rd5+
{[%clk 0:00:17.6]} 73... Kh4 {[%clk 0:00:06.5]} 1/2-1/2

[Event "Early-Titled-Tuesday-Blitz-September-26-2023"]
[Site "Chess.com"]
[Date "2023.09.26"]
[Round "7"]
[White "sergoy"]
[Black "zimmm36"]
[Result "1-0"]
[WhiteElo "2924"]
[BlackElo "2701"]
[TimeControl "180+1"]
[EndTime "9:20:52 PDT"]
[Termination "sergoy won by checkmate"]

1. d4 {[%clk 0:03:00.9]} 1... d5 {[%clk 0:02:50.1]} 2. c4 {[%clk 0:03:01]} 2...
e6 {[%clk 0:02:50.7]} 3. Nf3 {[%clk 0:03:01.5]} 3... Nf6 {[%clk 0:02:50.7]} 4.
Nc3 {[%clk 0:03:01.9]} 4... a6 {[%clk 0:02:47.9]} 5. cxd5 {[%clk 0:03:01.7]}
5... exd5 {[%clk 0:02:47.1]} 6. Bg5 {[%clk 0:03:01.9]} 6... Be6 {[%clk
0:02:45.9]} 7. Bxf6 {[%clk 0:02:51.2]} 7... Qxf6 {[%clk 0:02:45.2]} 8. Qb3
{[%clk 0:02:51.9]} 8... b5 {[%clk 0:02:27.5]} 9. a4 {[%clk 0:02:51.8]} 9... b4
{[%clk 0:02:21.3]} 10. Nxd5 {[%clk 0:02:51.8]} 10... Qd8 {[%clk 0:02:21]} 11. e4
{[%clk 0:02:52.4]} 11... c6 {[%clk 0:02:21.1]} 12. Qe3 {[%clk 0:02:33.7]} 12...
cxd5 {[%clk 0:02:18.7]} 13. exd5 {[%clk 0:02:34.6]} 13... Qxd5 {[%clk
0:02:17.8]} 14. Bd3 {[%clk 0:02:35.3]} 14... Ra7 {[%clk 0:01:44.1]} 15. Rc1
{[%clk 0:02:16.7]} 15... Re7 {[%clk 0:01:35.9]} 16. O-O {[%clk 0:02:13.9]} 16...
g6 {[%clk 0:01:30.6]} 17. Qf4 {[%clk 0:01:52.3]} 17... Qd8 {[%clk 0:01:26.8]}
18. Qe5 {[%clk 0:00:56.3]} 18... Rg8 {[%clk 0:01:19.4]} 19. Rfe1 {[%clk
0:00:55.9]} 19... Bg7 {[%clk 0:01:19]} 20. Qc5 {[%clk 0:00:54.2]} 20... Rd7
{[%clk 0:01:09.6]} 21. Qxb4 {[%clk 0:00:53.4]} 21... Bxd4 {[%clk 0:01:03.5]} 22.
Bc4 {[%clk 0:00:51.6]} 22... Nc6 {[%clk 0:00:49]} 23. Qa3 {[%clk 0:00:51.5]}
23... Rd6 {[%clk 0:00:32.5]} 24. b4 {[%clk 0:00:42.8]} 24... Ne7 {[%clk
0:00:31]} 25. Bxe6 {[%clk 0:00:38.4]} 25... fxe6 {[%clk 0:00:31.9]} 26. Nxd4
{[%clk 0:00:37.2]} 26... Rxd4 {[%clk 0:00:32.8]} 27. Rxe6 {[%clk 0:00:37.2]}
27... Rf8 {[%clk 0:00:33.4]} 28. Rce1 {[%clk 0:00:36.6]} 28... Rf7 {[%clk
0:00:33.6]} 29. b5 {[%clk 0:00:36.3]} 29... axb5 {[%clk 0:00:33.4]} 30. axb5
{[%clk 0:00:36.7]} 30... Rd1 {[%clk 0:00:23.1]} 31. Qb4 {[%clk 0:00:19.8]} 31...
Rxe1+ {[%clk 0:00:20.3]} 32. Rxe1 {[%clk 0:00:19.5]} 32... Qb6 {[%clk
0:00:18.9]} 33. Re2 {[%clk 0:00:20]} 33... Kf8 {[%clk 0:00:19]} 34. h3 {[%clk
0:00:20]} 34... Qb7 {[%clk 0:00:16.7]} 35. b6 {[%clk 0:00:19.6]} 35... Kg7
{[%clk 0:00:16.4]} 36. Qd4+ {[%clk 0:00:19.1]} 36... Kg8 {[%clk 0:00:15.1]} 37.
Re6 {[%clk 0:00:17.9]} 37... Nf5 {[%clk 0:00:12.9]} 38. Re8+ {[%clk 0:00:18.2]}
38... Rf8 {[%clk 0:00:13.4]} 39. Qc4+ {[%clk 0:00:18.4]} 39... Kg7 {[%clk
0:00:12.4]} 40. Re5 {[%clk 0:00:18.2]} 40... Rf7 {[%clk 0:00:12.4]} 41. Qc3
{[%clk 0:00:14.4]} 41... Qxb6 {[%clk 0:00:12.8]} 42. Rxf5+ {[%clk 0:00:12.1]}
42... Kg8 {[%clk 0:00:12.3]} 43. Qc8+ {[%clk 0:00:11.4]} 43... Kg7 {[%clk
0:00:12.6]} 44. Rxf7+ {[%clk 0:00:11.5]} 44... Kxf7 {[%clk 0:00:13]} 45. Qd7+
{[%clk 0:00:12.1]} 45... Kf6 {[%clk 0:00:13.5]} 46. Qxh7 {[%clk 0:00:10.2]}
46... Qb1+ {[%clk 0:00:13.9]} 47. Kh2 {[%clk 0:00:10.7]} 47... Qb8+ {[%clk
0:00:14.8]} 48. g3 {[%clk 0:00:11]} 48... Qa8 {[%clk 0:00:13.2]} 49. Qh4+ {[%clk
0:00:11]} 49... Kg7 {[%clk 0:00:13.6]} 50. Qd4+ {[%clk 0:00:11.3]} 50... Kh7
{[%clk 0:00:14.1]} 51. Qe3 {[%clk 0:00:11.5]} 51... Qa2 {[%clk 0:00:14.1]} 52.
h4 {[%clk 0:00:12]} 52... Kg7 {[%clk 0:00:14.3]} 53. Qd4+ {[%clk 0:00:12.1]}
53... Kh7 {[%clk 0:00:14.4]} 54. g4 {[%clk 0:00:11.9]} 54... Qb3 {[%clk
0:00:14]} 55. Qf4 {[%clk 0:00:11.4]} 55... Qd1 {[%clk 0:00:12.9]} 56. Qf7+
{[%clk 0:00:10.6]} 56... Kh6 {[%clk 0:00:12.4]} 57. Qf4+ {[%clk 0:00:10.9]}
57... Kh7 {[%clk 0:00:12.8]} 58. Qe4 {[%clk 0:00:09.2]} 58... Kh6 {[%clk
0:00:11.9]} 59. Kg2 {[%clk 0:00:07.3]} 59... Qa1 {[%clk 0:00:08.8]} 60. Qf4+
{[%clk 0:00:04.4]} 60... Kh7 {[%clk 0:00:09.1]} 61. h5 {[%clk 0:00:03.9]} 61...
gxh5 {[%clk 0:00:09.6]} 62. Qf5+ {[%clk 0:00:04.4]} 62... Kg7 {[%clk 0:00:09.5]}
63. Qg5+ {[%clk 0:00:05.1]} 63... Kf8 {[%clk 0:00:09.1]} 64. Qxh5 {[%clk
0:00:05.8]} 64... Qa8+ {[%clk 0:00:09.7]} 65. f3 {[%clk 0:00:06.3]} 65... Qa2+
{[%clk 0:00:09]} 66. Kg3 {[%clk 0:00:07]} 66... Qd2 {[%clk 0:00:09.2]} 67. Qf5+
{[%clk 0:00:07.4]} 67... Kg8 {[%clk 0:00:09.7]} 68. Qe6+ {[%clk 0:00:07.4]}
68... Kg7 {[%clk 0:00:09.7]} 69. Qe5+ {[%clk 0:00:07.8]} 69... Kg8 {[%clk
0:00:10.2]} 70. g5 {[%clk 0:00:08.3]} 70... Qc1 {[%clk 0:00:09.5]} 71. Kg4
{[%clk 0:00:08.2]} 71... Qg1+ {[%clk 0:00:09.6]} 72. Kf5 {[%clk 0:00:08.7]}
72... Qb1+ {[%clk 0:00:10.2]} 73. Qe4 {[%clk 0:00:08.6]} 73... Qb5+ {[%clk
0:00:10.1]} 74. Kf6 {[%clk 0:00:08.9]} 74... Qb2+ {[%clk 0:00:08.9]} 75. Qe5
{[%clk 0:00:08.4]} 75... Qb8 {[%clk 0:00:03.8]} 76. Qxb8+ {[%clk 0:00:03.6]}
76... Kh7 {[%clk 0:00:04.7]} 77. Qc7+ {[%clk 0:00:04]} 77... Kh8 {[%clk
0:00:04.9]} 78. Qg7# {[%clk 0:00:04.9]} 1-0